fUSD/lending_fUSD_20240415
["ID","MTS","AMOUNT","RATE_DAILY","PERIOD"]
[322652060,1713178237620,-519.14144225,0.00020055,2]
[322652063,1713178237632,-412.51,0.00020055,2]
[322652065,1713178237642,-908.48,0.00020055,2]
[322652067,1713178237653,-412.51,0.00020055,2]
[322652068,1713178237664,-412.51,0.00020055,2]
[322652069,1713178237676,-908.48,0.00020055,2]
[322652070,1713178237687,-409.95,0.00020055,2]
[322652071,1713178237699,-533.19,0.00020055,2]
[322652072,1713178237710,-300.0,0.000201,7]
[322652073,1713178237724,-908.48,0.00020141,2]
[322652074,1713178237735,-412.51,0.00020141,2]
[322652075,1713178237747,-908.48,0.00020141,2]
[322652076,1713178237758,-412.51,0.00020141,2]
[322652077,1713178237769,-173.74,0.00020168,2]
[322652078,1713178237780,-300.0,0.00020192,2]
[322652079,1713178237792,-150.0,0.00020192,2]
[322652080,1713178237804,-150.0,0.00020192,2]
[322652081,1713178237815,-162.52,0.00020192,2]
[322652082,1713178237826,-349.97,0.00020192,2]
[322652083,1713178237837,-150.0,0.00020192,2]
[322652084,1713178237851,-150.0,0.00020192,2]
[322652085,1713178237863,-350.88,0.00020192,2]
[322652086,1713178237874,-150.0,0.00020192,2]
[322652087,1713178237885,-150.0,0.00020192,2]
[322652088,1713178237895,-162.52,0.00020192,2]
[322652089,1713178237907,-349.97,0.00020192,2]
[322652090,1713178237917,-150.0,0.00020192,2]
[322652091,1713178237928,-349.97,0.00020192,2]
[322652092,1713178237938,-150.0,0.00020192,2]
[322652093,1713178237949,-150.0,0.00020192,2]
[322652094,1713178237960,-150.0,0.00020192,2]
[322652095,1713178237971,-162.52,0.00020192,2]
[322652096,1713178237982,-150.0,0.00020192,2]
[322652097,1713178237993,-161.64,0.00020192,2]
[322652098,1713178238004,-348.13,0.00020192,2]
[322652099,1713178238015,-150.0,0.00020192,2]
[322652100,1713178238026,-600.0,0.000202,7]
[322652101,1713178238036,-166.89,0.00020209,2]
[322652102,1713178238047,-908.48,0.00020241,2]
[322652103,1713178238058,-412.51,0.00020241,2]
[322652104,1713178238070,-412.51,0.00020241,2]
[322652105,1713178238081,-507.0,0.00020246,2]
[322652106,1713178238092,-162.52,0.00020278,2]
[322652107,1713178238104,-162.52,0.00020278,2]
[322652108,1713178238117,-521.35,0.00020278,2]
[322652109,1713178238128,-1051.76,0.00020278,2]
[322652110,1713178238139,-835.33,0.00020278,2]
[322652111,1713178238150,-499.99,0.00020278,2]
[322652112,1713178238160,-900.0,0.000203,7]
[322652113,1713178238171,-173.74,0.00020374,2]
[322652114,1713178238180,-150.0,0.00020378,2]
[322652115,1713178238189,-418.54,0.00020378,2]
[322652116,1713178238199,-521.35,0.00020378,2]
[322652117,1713178238208,-150.0,0.00020378,2]
[322652118,1713178238786,-162.52,0.00020378,2]
[322652119,1713178238817,-151.29,0.00020378,2]
[322652120,1713178238842,-150.0,0.00020378,2]
[322652121,1713178238872,-300.51,0.00020378,2]
[322652122,1713178238887,-349.97,0.00020378,2]
[322652123,1713178238896,-150.0,0.00020378,2]
[322652124,1713178238905,-521.35,0.00020378,2]
[322652125,1713178238914,-150.0,0.00020378,2]
[322652126,1713178238924,-162.52,0.00020378,2]
[322652127,1713178238933,-150.0,0.00020378,2]
[322652128,1713178238942,-349.97,0.00020378,2]
[322652129,1713178238951,-150.0,0.00020378,2]
[322652130,1713178238960,-150.0,0.00020378,2]
[322652131,1713178238969,-418.54,0.00020378,2]
[322652132,1713178238978,-150.0,0.00020378,2]
[322652133,1713178238987,-418.54,0.00020378,2]
[322652134,1713178238996,-150.0,0.00020378,2]
[322652135,1713178239006,-150.0,0.00020378,2]
[322652136,1713178239015,-150.0,0.00020378,2]
[322652137,1713178239024,-349.97,0.00020378,2]
[322652138,1713178239033,-521.35,0.00020378,2]
[322652139,1713178239043,-150.0,0.00020378,2]
[322652140,1713178239051,-150.0,0.00020378,2]
[322652141,1713178239060,-150.0,0.00020378,2]
[322652142,1713178239069,-418.54,0.00020378,2]
[322652143,1713178239078,-150.0,0.00020378,2]
[322652144,1713178239087,-521.35,0.00020378,2]
[322652145,1713178239096,-349.97,0.00020378,2]
[322652146,1713178239106,-418.54,0.00020378,2]
[322652147,1713178239115,-1200.0,0.000204,7]
[322652148,1713178239124,-157.63,0.00020466,2]
[322652149,1713178239134,-150.0,0.00020466,2]
[322652150,1713178239143,-150.0,0.00020466,2]
[322652151,1713178239153,-150.0,0.000205,2]
[322652152,1713178239162,-1500.0,0.000205,7]
[322652153,1713178239171,-173.74,0.0002058,2]
[322652154,1713178239181,-150.0,0.00020587,2]
[322652155,1713178239190,-300.0,0.000206,7]
[322652156,1713178239198,-300.0,0.000207,7]
[322652157,1713178239208,-1000.0,0.000207,2]
[322652158,1713178239217,-173.74,0.00020786,2]
[322652159,1713178239226,-159.55931233,0.0002079,2]
[322652160,1713178239235,-724.03661295,0.000208,2]
[322652161,1713178239244,-300.0,0.000208,7]
[322652162,1713178239253,-1396.7297,0.000208,2]
[322652163,1713178239264,-175.99709887,0.000208,2]
[322652164,1713178239273,-1000.0,0.000208,2]
[322652165,1713178239282,-2070.3146,0.000208,2]
[322652166,1713178239292,-322.01103444,0.000208,2]
[322652167,1713178239304,-724.03661292,0.00020811,2]
[322652168,1713178239313,-354.0,0.00020822,2]
[322652169,1713178239323,-724.03661292,0.00020822,2]
[322652170,1713178239331,-200.0,0.00020832,2]
[322652171,1713178239342,-1000.0,0.00020832,2]
[322652172,1713178239351,-200.0,0.00020832,2]
[322652173,1713178239361,-500.0,0.00020832,2]
[322652174,1713178239370,-724.03661292,0.00020833,2]
[322652175,1713178239380,-724.03661292,0.00020844,2]
[322652176,1713178239389,-724.03661292,0.00020856,2]
[322652177,1713178239398,-724.03661292,0.00020867,2]
[322652178,1713178239407,-724.03661292,0.00020878,2]
[322652179,1713178239417,-724.03661292,0.00020889,2]
[322652180,1713178239426,-8106.91647672,0.00020898,2]
[322652181,1713178239435,-802.81760602,0.00020898,2]
[322652182,1713178239444,-194.14844893,0.00020898,2]
[322652183,1713178239453,-2176.78118277,0.00020898,2]
[322652184,1713178239463,-2356.03750157,0.00020898,2]
[322652185,1713178239472,-155.0,0.00020898,2]
[322652186,1713178239482,-319.80146847,0.00020898,2]
[322652187,1713178239491,-644.54423816,0.00020898,2]
[322652188,1713178239500,-155.0,0.00020898,2]
[322652189,1713178239509,-181.57414948,0.00020898,2]
[322652190,1713178239519,-175.74358547,0.00020898,2]
[322652191,1713178239528,-1000.0,0.00020898,2]
[322652192,1713178239537,-500.0,0.00020899,2]
[322652193,1713178239546,-39998.6679,0.00020899,2]
[322652194,1713178239556,-570.3146,0.00020899,2]
[322652195,1713178239565,-127875.17838556,0.000209,2]
[322652197,1713178240279,-352.43815178,0.000209,2]
[322652198,1713178240373,-121772.38346266,0.000209,2]
[322652199,1713178240383,-21798.19371974,0.000209,2]
[322652200,1713178240394,-151.66963605,0.000209,2]
[322652201,1713178240403,-1696.02112332,0.000209,2]
[322652202,1713178240412,-724.03661292,0.000209,2]
[322652203,1713178240422,-300.0,0.000209,7]
[322652204,1713178240431,-12581.3631236,0.00020998,2]
[322652205,1713178240440,-1480.18220459,0.00020998,2]
[322652206,1713178240449,-155.0,0.00020998,2]
[322652207,1713178240458,-708.39996951,0.00020998,2]
[322652208,1713178240467,-209.58280169,0.00020998,2]
[322652209,1713178240476,-150.01,0.00020999,2]
[322652210,1713178240485,-1944.65385102,0.00020999,2]
[322652211,1713178240494,-211717.3086068,0.00020999,2]
[322652212,1713178240504,-8499.1576413,0.00020999,2]
[322652213,1713178240513,-25852.8071675,0.00020999,2]
[322652214,1713178240522,-500.0,0.00020999,2]
[322652215,1713178240531,-184.7941337,0.00020999,2]
[322652216,1713178240540,-500.0,0.00020999,2]
[322652217,1713178240549,-500.0,0.00020999,2]
[322652218,1713178240558,-350.0,0.00020999,2]
[322652219,1713178240567,-500.49239094,0.00020999,2]
[322652220,1713178240576,-500.0,0.00020999,2]
[322652221,1713178240585,-500.0,0.00020999,2]
[322652222,1713178240594,-384.64431255,0.00020999,2]
[322652223,1713178240604,-199.70051443,0.00020999,2]
[322652224,1713178240613,-458.92390571,0.00020999,2]
[322652225,1713178240622,-462.51246902,0.00020999,2]
[322652226,1713178240632,-603.9633878,0.00020999,2]
[322652227,1713178240641,-500.0,0.00020999,2]
[322652228,1713178240650,-500.0,0.00020999,2]
[322652229,1713178240660,-419.24092014,0.00020999,2]
[322652230,1713178240669,-3907904.56175496,0.00021,2]
[322652231,1713178240716,-2441.43841519,0.00021,2]
[322652232,1713178240931,-53327.86238734,0.00021,2]
[322652233,1713178240943,-46944.70610441,0.00021,2]
[322652234,1713178240955,-81419.0177005,0.00021,2]
[322652235,1713178240967,-266537.94182444,0.00021,2]
[322652236,1713178240978,-45967.44700496,0.00021,2]
[322652237,1713178240990,-326.41000001,0.00021,2]
[322652238,1713178241001,-280.62050714,0.00021,2]
[322652257,1713178242991,-1000.0,0.000209,2]
[322652258,1713178243000,-1935.37919018,0.00021,2]
[322652259,1713178243012,-7281.24114308,0.00021,2]
[322652260,1713178243047,-1836.89131388,0.00021,2]
[322652261,1713178243320,-3883.09179398,0.00021,2]
[322652262,1713178243332,-34101.71728542,0.00021,2]
[322652288,1713178245779,-263.7103706,0.00020999,2]
[322652289,1713178245789,-114.70783868,0.00020999,2]
[322652290,1713178246011,-1441.01524213,0.00020999,2]
[322652291,1713178246020,-2511.00177492,0.00021,2]
[322652298,1713178246701,-3247.18150115,0.00021,2]
[322652299,1713178246810,-31715.73820004,0.00021,2]
[322652300,1713178246822,-120542.13137139,0.00021,2]
[322652301,1713178246833,-103719.292,0.00021,2]
[322652318,1713178565933,549.51,0.00018033,2]
[322652332,1713179037201,1249.17,0.00027945,30]
[322652333,1713179037775,1249.17,0.00027945,30]
[322652334,1713179038073,1249.17,0.00027945,30]
[322652335,1713179038330,1249.17,0.00027945,30]
[322652336,1713179038588,1249.17,0.00027945,30]
[322652337,1713179038881,1249.17,0.00027945,30]
[322652338,1713179039179,1249.17,0.00027945,30]
[322652339,1713179039430,1249.17,0.00027945,30]
[322652340,1713179039697,1249.17,0.00027945,30]
[322652341,1713179040038,1249.17,0.00027945,30]
[322652342,1713179040393,1249.17,0.00027945,30]
[322652343,1713179040538,1249.17,0.00027945,30]
[322652344,1713179040910,1249.17,0.00027945,30]
[322652345,1713179041175,1249.17,0.00027945,30]
[322652346,1713179041436,1249.17,0.00027945,30]
[322652347,1713179041698,1249.17,0.00027945,30]
[322652348,1713179041955,1249.17,0.00027945,30]
[322652368,1713179043876,1249.17,0.00027945,30]
[322652373,1713179043963,1249.17,0.00027945,30]
[322652380,1713179044073,1249.17,0.00027945,30]
[322652382,1713179044291,1249.17,0.00027945,30]
[322652383,1713179044374,1249.17,0.00027945,30]
[322652384,1713179044558,1249.17,0.00027945,30]
[322652385,1713179044738,1249.19746547,0.00027945,30]
[322652479,1713179366822,542.41,0.00017669,2]
[322652498,1713179431955,-645.24728945,0.00018899,2]
[322652499,1713179431965,-160.96564049,0.000189,2]
[322652500,1713179431976,-293.12008708,0.00018999,2]
[322652501,1713179431987,-334.50747262,0.00018999,2]
[322652502,1713179432536,-344.49835278,0.00018999,2]
[322652503,1713179432548,-6399.76730264,0.00018999,2]
[322652504,1713179432658,-3074.14648705,0.00018999,2]
[322652505,1713179432671,-109.30424379,0.00018999,2]
[322652506,1713179432681,-652.44795087,0.00019,3]
[322652507,1713179432695,-448.0937345,0.00019,3]
[322652508,1713179433250,-449.45831463,0.00019,3]
[322652509,1713179433260,-24.14541493,0.00019178,2]
[322652510,1713179433274,-482.85458507,0.00019178,2]
[322652511,1713179433287,-250.0,0.00019529,2]
[322652512,1713179433296,-724.54,0.00019609,2]
[322652513,1713179433306,-1513.88,0.00019686,2]
[322652514,1713179433315,-1870.65,0.00019705,2]
[322652515,1713179433324,-500.0,0.00019728,2]
[322652516,1713179433333,-275.46,0.00019796,2]
[322652517,1713179433342,-587.16,0.00019836,2]
[322652518,1713179433351,-152.27,0.00019849,2]
[322652519,1713179433360,-169.57,0.00019918,2]
[322652520,1713179433369,-542.41,0.00019933,2]
[322652521,1713179433379,-981.9786843,0.0002,2]
[322652522,1713179433388,-507.0,0.00020274,2]
[322652523,1713179433397,-150.0,0.000205,2]
[322652524,1713179433406,-475.18014001,0.00020511,2]
[322652525,1713179433415,-6205.04658962,0.00020666,2]
[322652537,1713179438249,-449.47199838,0.000205,2]
[322652539,1713179438260,-912.8173,0.000205,2]
[322652540,1713179438272,-815.0,0.000205,2]
[322652541,1713179438307,-10412.16793657,0.000205,2]
[322652542,1713179438317,-3776.55286342,0.00020666,2]
[322652543,1713179438329,-122070.94023309,0.00020666,2]
[322652544,1713179438338,-5685.0,0.00020667,2]
[322652545,1713179438347,-1178.0,0.00020667,2]
[322652546,1713179438357,-4775.0,0.00020667,2]
[322652547,1713179438366,-37635.0,0.00020667,2]
[322652548,1713179438376,-792.88,0.00020667,2]
[322652549,1713179438385,-1000.0,0.000207,2]
[322652550,1713179438395,-158.77109337,0.0002079,2]
[322652551,1713179438404,-366.464,0.00020799,2]
[322652552,1713179438413,-7833.8783,0.00020799,2]
[322652553,1713179438423,-173.3873,0.00020799,2]
[322652554,1713179438433,-500.0,0.000208,2]
[322652556,1713179438442,-5130.2899,0.000208,2]
[322652558,1713179438451,-5890.715,0.000208,2]
[322652560,1713179438461,-160.96564048,0.000208,2]
[322652562,1713179438470,-162.455,0.000208,2]
[322652564,1713179438480,-354.0,0.00020822,2]
[322652566,1713179438489,-200.0,0.00020832,2]
[322652568,1713179438500,-1000.0,0.00020832,2]
[322652570,1713179438510,-200.0,0.00020832,2]
[322652572,1713179438519,-500.0,0.00020832,2]
[322652574,1713179438528,-152.27,0.00020884,2]
[322652576,1713179438539,-163469.04098758,0.000209,3]
[322652578,1713179438549,-192.5959,0.000209,2]
[322652580,1713179438558,-139916.5422,0.000209,2]
[322652582,1713179438567,-720.59258801,0.000209,2]
[322652584,1713179438577,-7500.0,0.000209,2]
[322652585,1713179438586,-758.36523691,0.000209,2]
[322652586,1713179438596,-1000.0,0.000209,2]
[322652587,1713179438605,-7265.28922602,0.00020997,2]
[322652588,1713179438615,-631.3744135,0.00020998,2]
[322652589,1713179438625,-237.13005868,0.00020998,2]
[322652590,1713179438635,-20821.83699041,0.00020998,2]
[322652591,1713179438645,-155.0,0.00020998,2]
[322652592,1713179438654,-1480.18220459,0.00020998,2]
[322652593,1713179438664,-708.39996951,0.00020998,2]
[322652594,1713179438675,-209.58280169,0.00020998,2]
[322652595,1713179438686,-189.04152,0.00020998,2]
[322652596,1713179438696,-2565.05651449,0.00020999,2]
[322652597,1713179438706,-150.01,0.00020999,2]
[322652598,1713179438716,-1724.48065026,0.00020999,2]
[322652599,1713179438726,-157.041518,0.00020999,2]
[322652600,1713179438735,-500.0,0.00020999,2]
[322652601,1713179438744,-500.0,0.00020999,2]
[322652602,1713179438755,-500.0,0.00020999,2]
[322652603,1713179438764,-500.0,0.00020999,2]
[322652604,1713179438774,-500.0,0.00020999,2]
[322652605,1713179438786,-500.0,0.00020999,2]
[322652606,1713179438795,-603.9633878,0.00020999,2]
[322652607,1713179438804,-500.0,0.00020999,2]
[322652608,1713179438813,-508.63154846,0.00020999,2]
[322652609,1713179438823,-462.51246902,0.00020999,2]
[322652610,1713179438832,-458.92390571,0.00020999,2]
[322652611,1713179438842,-384.64431255,0.00020999,2]
[322652612,1713179438852,-199.70051443,0.00020999,2]
[322652613,1713179438861,-500.49239094,0.00020999,2]
[322652614,1713179438871,-3558338.17968627,0.00021,2]
[322652615,1713179438880,-1430.52250641,0.00021,2]
[322652616,1713179438889,-453.05,0.00021,2]
[322652617,1713179438899,-490.6,0.00021,2]
[322652618,1713179438908,-65164.49918708,0.00021,2]
[322652624,1713179440332,-4015.65819908,0.00021,2]
[322652625,1713179440502,-23706.99469699,0.00021,2]
[322652626,1713179440514,-74212.71488791,0.00021,2]
[322652627,1713179440523,-482.0,0.00021,3]
[322652628,1713179440532,-715.62335084,0.00021,2]
[322652629,1713179440542,-205673.59776637,0.00021,2]
[322652630,1713179440553,-773.28794913,0.00021,2]
[322652631,1713179440565,-2077.31507512,0.00021,2]
[322652632,1713179441195,-500.0,0.00020999,2]
[322652633,1713179441204,-500.0,0.00020999,2]
[322652634,1713179441214,-500.0,0.00020999,2]
[322652635,1713179441224,-3338.73405323,0.00021,2]
[322652636,1713179441236,-4215.87233073,0.00021,2]
[322652637,1713179441247,-754.60610005,0.00021,2]
[322652638,1713179441259,-329.32093772,0.00021,2]
[322652639,1713179441302,-500.0,0.00020999,2]
[322652640,1713179441311,-500.0,0.00020999,2]
[322652641,1713179441320,-5130.98403498,0.00021,2]
[322652643,1713179443181,-500.0,0.00020999,2]
[322652644,1713179443191,-338.406,0.00020999,2]
[322652645,1713179443200,-173.5730599,0.00021,2]
[322652647,1713179443211,-13294.11552001,0.00021,2]
[322652648,1713179443222,-34994.2321105,0.00021,2]
[322652649,1713179443233,-11325.68738036,0.00021,2]
[322652650,1713179443259,-489.48698961,0.00021,2]
[322652651,1713179443278,-16087.5102765,0.00021,2]
[322652663,1713179445902,-1379.58452021,0.00020999,2]
[322652664,1713179445911,-5282.67780984,0.00021,2]
[322652665,1713179445922,-365395.26730122,0.00021,2]
[322652666,1713179445934,-10005.75,0.00021,2]
[322652667,1713179445960,-12182.11968285,0.00021,2]
[322652668,1713179445972,-24538.57460953,0.00021,2]
[322652669,1713179445983,-9991.2,0.00021,2]
[322652670,1713179446015,-9743.13918185,0.00021,2]
[322652671,1713179446026,-809.68945,0.00021,2]
[322652672,1713179446219,-252.32,0.00021,2]
[322652675,1713179446246,-1489.23322945,0.00021,2]
[322652695,1713179703005,150.5,0.0002099,15]
[322652696,1713179703496,150.5,0.0002098,15]
[322652697,1713179704185,150.5,0.0002097,15]
[322652707,1713179866118,508.82,0.00017797,2]
[322652835,1713180374180,503.29,0.00017622,2]
[322652856,1713180518519,-1550.0,0.00019,3]
[322652857,1713180518539,-450.0,0.000192,2]
[322652858,1713180520553,-2000.0,0.000192,2]
[322652859,1713180520740,-1418.29298528,0.000192,2]
[322652860,1713180520762,-581.70701472,0.00019446,2]
[322652861,1713180521389,-90.67298528,0.00019446,2]
[322652862,1713180521410,-277.77,0.00019448,2]
[322652907,1713180554500,567.06106105,0.00018898,2]
[322652909,1713180572066,365.42517635,0.00019448,2]
[322652910,1713180592030,209.31688883,0.00019448,2]
[322652911,1713180599034,475.02,0.00019375,2]
[322652912,1713180601464,14.73388849,0.00019448,2]
[322652913,1713180601486,2000.0,0.00019448,2]
[322652914,1713180601506,2000.0,0.00019448,2]
[322652915,1713180601528,1436.87845005,0.00019448,2]
[322652916,1713180603837,563.12154995,0.00019374,2]
[322652917,1713180603858,1456.79004608,0.00019374,2]
[322652936,1713180632355,-799.25552891,0.00019504,2]
[322652937,1713180632365,-284.76045616,0.00019505,2]
[322652938,1713180632408,-241.44979004,0.00019505,2]
[322652939,1713180632419,-200.0,0.00019507,2]
[322652940,1713180632428,-150.0,0.00019507,2]
[322652941,1713180632438,-258.55020996,0.00019508,2]
[322652942,1713180632449,-650.44799404,0.00019508,2]
[322652943,1713180632461,-3317.45,0.00019508,2]
[322652944,1713180632483,-3683.15728202,0.00019508,2]
[322652945,1713180632495,-6910.58451398,0.00019508,2]
[322652946,1713180632504,-314.19,0.00019524,2]
[322652947,1713180632514,-2770.71,0.00019539,2]
[322652949,1713180632524,-500.0,0.00019565,2]
[322652951,1713180632532,-250.0,0.00019565,2]
[322652953,1713180632542,-240.12,0.0001957,2]
[322652954,1713180632551,-13000.0,0.000196,2]
[322652955,1713180632560,-1793.12,0.000196,2]
[322652956,1713180632570,-1000.0,0.00019623,2]
[322652957,1713180632579,-1000.0,0.00019624,2]
[322652958,1713180632588,-152.8,0.00019651,2]
[322652959,1713180632597,-3868.29298528,0.00019737,2]
[322652960,1713180632606,-503.29,0.00019886,2]
[322652961,1713180632615,-1245.5156,0.000199,2]
[322652962,1713180632624,-253.13001085,0.00019948,2]
[322652963,1713180632634,-67839.53186034,0.0002,2]
[322652964,1713180632669,-4596.39129777,0.0002,2]
[322652965,1713180632723,-689.71401106,0.0002,2]
[322652966,1713180632829,-651.08581171,0.0002,2]
[322652975,1713180638064,-1292.04521374,0.0002,2]
[322652976,1713180638121,-3757.48353988,0.0002,2]
[322652977,1713180638134,-31217.53133727,0.0002,2]
[322652978,1713180638143,-300.0,0.000201,7]
[322652979,1713180638153,-499.99,0.000201,2]
[322652980,1713180638162,-600.0,0.000202,7]
[322652981,1713180638172,-900.0,0.000203,7]
[322652982,1713180638183,-1380.5759153,0.00020324,2]
[322652983,1713180638192,-1200.0,0.000204,7]
[322652984,1713180638201,-150.0,0.000205,2]
[322652985,1713180638211,-1500.0,0.000205,7]
[322652986,1713180638221,-300.0,0.000206,7]
[322652987,1713180638230,-1380.5759153,0.00020671,2]
[322652988,1713180638239,-175.52167063,0.00020688,2]
[322652989,1713180638249,-1000.0,0.000207,2]
[322652990,1713180638258,-300.0,0.000207,7]
[322652991,1713180638268,-175.52167058,0.00020712,2]
[322652992,1713180638277,-175.52167058,0.00020735,2]
[322652993,1713180638286,-251.27451082,0.00020788,2]
[322652994,1713180638296,-164.88643829,0.0002079,2]
[322652995,1713180638305,-2233.71353,0.0002079,2]
[322652996,1713180638314,-1000.0,0.000208,2]
[322652997,1713180638323,-300.0,0.000208,7]
[322652998,1713180638333,-150.0,0.00020806,2]
[322652999,1713180638342,-354.0,0.00020822,2]
[322653000,1713180638351,-200.0,0.00020832,2]
[322653001,1713180638360,-1000.0,0.00020832,2]
[322653002,1713180638370,-200.0,0.00020832,2]
[322653003,1713180638378,-500.0,0.00020832,2]
[322653004,1713180638388,-2292.0,0.00020845,2]
[322653005,1713180638397,-461.0,0.00020845,2]
[322653006,1713180638406,-1414.213,0.00020845,2]
[322653007,1713180638415,-5364.0,0.00020845,2]
[322653008,1713180638426,-1004.189,0.00020845,2]
[322653009,1713180638435,-2585.49635427,0.00020898,2]
[322653010,1713180638444,-7461.1947,0.000209,2]
[322653011,1713180638453,-16820.3591,0.000209,2]
[322653012,1713180638463,-180.22004204,0.000209,2]
[322653013,1713180638472,-1041.0,0.000209,2]
[322653014,1713180638483,-1317.0,0.000209,2]
[322653015,1713180638492,-300.0,0.000209,7]
[322653016,1713180638502,-571.75598575,0.000209,2]
[322653017,1713180638511,-39292.53243126,0.000209,2]
[322653019,1713180638521,-1638.20351165,0.000209,2]
[322653020,1713180638530,-330.76112442,0.000209,2]
[322653021,1713180638541,-157.04152,0.00020997,2]
[322653022,1713180638550,-157.04152,0.00020997,2]
[322653023,1713180638560,-157.04152,0.00020997,2]
[322653024,1713180638571,-157.04152,0.00020997,2]
[322653025,1713180638582,-157.04152,0.00020997,2]
[322653026,1713180638593,-157.04152,0.00020997,2]
[322653027,1713180638602,-157.04152,0.00020997,2]
[322653028,1713180638611,-157.04152,0.00020997,2]
[322653029,1713180638621,-157.04152,0.00020997,2]
[322653030,1713180638630,-157.04152,0.00020997,2]
[322653032,1713180638639,-157.04152,0.00020997,2]
[322653033,1713180638648,-157.04152,0.00020997,2]
[322653034,1713180638657,-155.0,0.00020998,2]
[322653035,1713180638666,-209.58280169,0.00020998,2]
[322653036,1713180638678,-708.39996951,0.00020998,2]
[322653037,1713180638687,-631.3744135,0.00020998,2]
[322653038,1713180638696,-1480.18220459,0.00020998,2]
[322653039,1713180638705,-237.13005868,0.00020998,2]
[322653040,1713180638714,-20821.83699041,0.00020998,2]
[322653041,1713180638723,-620.99067496,0.00020998,2]
[322653042,1713180638732,-500.0,0.00020998,2]
[322653043,1713180638741,-409.85889209,0.00020998,2]
[322653044,1713180638750,-155.18532014,0.00020998,2]
[322653045,1713180638759,-441.26974899,0.00020998,2]
[322653046,1713180638768,-326.32227901,0.00020998,2]
[322653047,1713180638778,-572.20680957,0.00020998,7]
[322653049,1713180638787,-157.04152,0.00020998,2]
[322653051,1713180638797,-157.04152,0.00020998,2]
[322653053,1713180638806,-157.04152,0.00020998,2]
[322653054,1713180638815,-157.04152,0.00020998,2]
[322653055,1713180638824,-157.04152,0.00020998,2]
[322653056,1713180638833,-157.04152,0.00020998,2]
[322653057,1713180638842,-157.04152,0.00020998,2]
[322653058,1713180638851,-157.04152,0.00020998,2]
[322653059,1713180638860,-157.04152,0.00020998,2]
[322653060,1713180638869,-173.04152,0.00020998,2]
[322653061,1713180638878,-173.04152,0.00020998,2]
[322653062,1713180638887,-173.04152,0.00020998,2]
[322653063,1713180638896,-164.04152,0.00020998,2]
[322653064,1713180638905,-2176.78118277,0.00020998,2]
[322653065,1713180638915,-1127.03271038,0.00020998,2]
[322653066,1713180638924,-809.62980294,0.00020999,2]
[322653067,1713180638933,-9876.46901225,0.00020999,2]
[322653068,1713180638942,-640.80275284,0.00020999,2]
[322653069,1713180638951,-150.01,0.00020999,2]
[322653070,1713180638962,-1471.50531395,0.00020999,2]
[322653071,1713180638971,-157.04152,0.00020999,2]
[322653072,1713180638980,-157.04152,0.00020999,2]
[322653073,1713180638988,-157.04152,0.00020999,2]
[322653074,1713180638997,-157.04152,0.00020999,2]
[322653075,1713180639006,-157.04152,0.00020999,2]
[322653076,1713180639015,-157.04152,0.00020999,2]
[322653077,1713180639023,-157.04152,0.00020999,2]
[322653078,1713180639032,-157.04152,0.00020999,2]
[322653079,1713180639041,-173.04152,0.00020999,2]
[322653080,1713180639051,-173.04152,0.00020999,2]
[322653081,1713180639061,-173.04152,0.00020999,2]
[322653082,1713180639070,-173.04152,0.00020999,2]
[322653083,1713180639079,-500.49239094,0.00020999,2]
[322653084,1713180639089,-199.70051443,0.00020999,2]